Cogmind - Beta 17 @@@ ROGUE MODE // 2026.07.10 @ 11:11:28 Player: welikiq Result: Destroyed by G-34 Mercenary with Small Laser Performance ------------- Evolutions (0) 0 Regions Visited (4) 800 Robots Destroyed (18) 90 Value Destroyed (370) 370 Prototype IDs (2) 40 Alien Tech Used (0) 0 Bonus (300) 300 TOTAL SCORE: 1600 Bonus ------- Aligned with FarCom 300 Cogmind --------- Core Integrity 0/250 Matter 300/300 Energy 99/100 System Corruption 3% Temperature Cool (6) Movement Core (50) Location -9/Mines Parts ------- > --- POWER (1) -------- (None) > --- PROPULSION (2) --- (None) > --- UTILITY (2) ------ (None) > --- WEAPON (2) ------- (None) > --- INVENTORY (5) ---- High-capacity Storage Unit Medium Armor Plating Medium Armor Plating Medium Armor Plating Medium Armor Plating Peak State ------------ > --- POWER ------------ Light Nuclear Core > --- PROPULSION ------- Light Treads Light Treads > --- UTILITY ---------- Medium Storage Unit Structural Scanner > --- WEAPON ----------- Medium Laser Assault Rifle > --- INVENTORY -------- Improved Ion Engine Light Treads Medium Armor Plating Medium Armor Plating Medium Armor Plating Medium Armor Plating [Rating: 10] Favorites ----------- Power Light Nuclear Core Engine Ion Engine Power Core Light Nuclear Core Propulsion Light Treads Treads Light Treads Utility Medium Storage Unit Device Structural Scanner Storage Medium Storage Unit Weapon Assault Rifle Energy Gun Medium Laser Ballistic Gun Assault Rifle Build | -11 -10 -10 -10 -9 ------- Run | Yrd Mat Min Exi Min Slots Evolved . | . . . . . Power . | . . . . . Propulsion . | . . . . . Utility . | . . . . . Weapon . | . . . . . Parts Attached 15 | 7 5 3 . . Power 4 | 2 1 1 . . Engine 3 | 2 . 1 . . Core 1 | . 1 . . . Reactor . | . . . . . Propulsion 5 | 2 1 2 . . Treads 5 | 2 1 2 . . Leg . | . . . . . Wheel . | . . . . . Hover . | . . . . . Flight . | . . . . . Utility 3 | 1 2 . . . Device 1 | . 1 . . . Storage 2 | 1 1 . . . Processor . | . . . . . Hackware . | . . . . . Protection . | . . . . . Artifact . | . . . . . Weapon 3 | 2 1 . . . Energy Gun 1 | 1 . . . . Energy Cannon . | . . . . . Ballistic Gun 2 | 1 1 . . . Ballistic Cannon . | . . . . . Launcher . | . . . . . Special Weapon . | . . . . . Impact Weapon . | . . . . . Slashing Weapon . | . . . . . Piercing Weapon . | . . . . . Special Melee Weapon . | . . . . . Unidentified Prototypes . | . . . . . Parts Lost 5 | . . 5 . . Power 1 | . . 1 . . Propulsion 2 | . . 2 . . Utility . | . . . . . Weapon 2 | . . 2 . . Highest Loss Streak 4 | . . 4 . . To Critical Strikes . | . . . . . Average Backups 4 | . 3 9 5 5 Power . | . 1 . . . Propulsion . | . . 2 . . Utility 2 | . 1 5 5 5 Weapon . | . . . . . Tool/Special . | . . . . . Unused Backups 5 | . . . . 5 Power . | . . . . . Propulsion . | . . . . . Utility 5 | . . . . 5 Weapon . | . . . . . Tool/Special . | . . . . . Average Slot Usage (%) 84 | . 98 91 . . Engine 5 | . 7 1 . . Core 6 | . 6 10 . . Treads 23 | . 27 25 . . Device 11 | . 12 13 . . Storage 12 | . 14 13 . . Energy Gun 11 | . 13 12 . . Ballistic Gun 12 | . 14 13 . . Peak Build Rating 10 | 6 10 10 . . Average Rating 7 | 4 8 8 . . On Entrance 3 | . 6 10 . . Avg Prop Armor Cover (%) . | . . . . . Naked Turns 237 | . . 25 182 30 Heaviest Build 24 | 14 24 22 . . Greatest Support 40 | 40 40 40 3 3 Greatest Overweight (x) 1 | . . 1 . . Average Overweight (x) . | . . . . . Largest Inventory Capacity 10 | 8 10 10 5 5 Average Capacity 9 | 6 9 9 5 5 Most Carried 10 | 1 9 10 5 5 Average Carried 4 | . 3 9 5 5 Final Capacity 10 | 8 10 5 5 5 Final Carried 9 | 1 9 5 5 5 Class Distribution -------------------- 100% | Mutant Dominant Class ---------------- Mutant | -10/Materials Mutant | -10/Mines Mutant | -10/Exiles Mutant | -9/Mines Resources | -11 -10 -10 -10 -9 ----------- Run | Yrd Mat Min Exi Min Matter Collected 541 | 201 287 53 . . Remotely . | . . . . . Salvage Created 662 | . 611 51 . . Parts 38 | . 38 . . . Haulers Intercepted 1 | . 1 . . . Recyclers Shooed 2 | . 2 . . . Parts Field Recycled . | . . . . . Retrieved Matter . | . . . . . Parts Self-Destructed . | . . . . . Prevented . | . . . . . Parts Restored . | . . . . . Kills | -11 -10 -10 -10 -9 ------- Run | Yrd Mat Min Exi Min Combat Hostiles Destroyed 17 | . 13 4 . . Guns 17 | . 13 4 . . Classes Destroyed 6 | . 5 1 . . Hauler 1 | . 1 . . . Recycler 2 | . 2 . . . Watcher 2 | . 2 . . . Swarmer 6 | . 6 . . . Grunt 7 | . 7 . . . Assembled 4 | . . 4 . . Best Kill Streak 3 | . 3 3 . . Combat Bots Only 3 | . 3 3 . . Max Kills in Single Turn 1 | . 1 1 . . Gunslinging . | . . . . . Exploded . | . . . . . Melee . | . . . . . Uniques/NPCs Destroyed . | . . . . . Combat | -11 -10 -10 -10 -9 -------- Run | Yrd Mat Min Exi Min Hostile Shots Fired 94 | . 43 49 . 2 Missed 28 | . 7 20 . 1 Hits 66 | . 36 29 . 1 Melee 6 | . . 6 . . Projectile 60 | . 36 23 . 1 AOE 7 | . . 7 . . Critical Strikes 1 | . 1 . . . Part Disruptions 1 | . . 1 . . Damage Taken 1138 | . 420 707 . 11 Core 253 | . 52 190 . 11 Absorbed by Shields . | . . . . . Regen/Repaired (Parts) 72 | . 72 . . . Core Remaining (%) 100 | 100 . . . . Volleys Fired 63 | . 51 12 . . Largest 2 | . 2 2 . . Hottest 70 | . 70 70 . . Shots Fired 120 | . 97 23 . . Gun 120 | . 97 23 . . Cannon . | . . . . . Launcher . | . . . . . Special . | . . . . . Kinetic 62 | . 51 11 . . Thermal 58 | . 46 12 . . Explosive . | . . . . . Electromagnetic . | . . . . . Robot Hit Streak 12 | . 12 12 . . Robot Miss Streak 3 | . 3 1 . . Penetration Max . | . . . . . Secondary Targets 1 | . . 1 . . Max Gunslinging Chain 1 | . . 1 . . Shots Hit Robots 90 | . 69 21 . . Core Hits 41 | . 31 10 . . Critical Kills . | . . . . . Critical Parts Destroyed . | . . . . . Critical Strikes 5 | . 3 2 . . Burn 5 | . 3 2 . . Melee Attacks . | . . . . . Impact . | . . . . . Slashing . | . . . . . Piercing . | . . . . . Sneak Attacks . | . . . . . Combat Hostiles . | . . . . . Follow-up Attacks . | . . . . . Damage Inflicted 1183 | . 920 263 . . Guns 1164 | . 901 263 . . Cannons . | . . . . . Explosions . | . . . . . Melee . | . . . . . Ramming 19 | . 19 . . . Kinetic 585 | . 459 126 . . Thermal 579 | . 442 137 . . Explosive . | . . . . . Electromagnetic . | . . . . . Impact . | . . . . . Slashing . | . . . . . Piercing . | . . . . . Highest Corruption 3 | . . 3 3 3 Average Corruption 3 | . . 3 3 3 Corruption Purged . | . . . . . Corruption Blocked . | . . . . . Effects 3 | . . 1 2 . Message Errors 2 | . . . 2 . Data Loss (minor) 1 | . . 1 . . Overload Shots . | . . . . . Overflow Damage . | . . . . . Projectiles . | . . . . . Explosions . | . . . . . Melee . | . . . . . Knockbacks . | . . . . . Impact . | . . . . . Kinetic . | . . . . . Secondary . | . . . . . Self-Inflicted Damage . | . . . . . Shots . | . . . . . Rammed 5 | . 5 . . . Targets Rammed 5 | . 5 . . . Kicked . | . . . . . Crushed . | . . . . . Highest Temperature 99 | . 99 44 . . Average Temperature 30 | . 32 15 . . Received Heat Transfer 235 | . 189 40 . 6 Siege Activations . | . . . . . Martial Activations . | . . . . . Shielding Activations . | . . . . . Robots Disrupted . | . . . . . Combat Hostiles . | . . . . . Robots Corrupted . | . . . . . Combat Hostiles . | . . . . . Parts Fried . | . . . . . Impact Corruptions . | . . . . . Robots Melted . | . . . . . Combat Hostiles . | . . . . . Parts Melted 1 | . 1 . . . Heat Transferred 2072 | . 1517 555 . . Parts Sabotaged . | . . . . . Parts Stolen . | . . . . . Parts Stripped . | . . . . . Power Chain Reactions . | . . . . . Alert | -11 -10 -10 -10 -9 ------- Run | Yrd Mat Min Exi Min Maximum Alert Level . | . . . . . Low Security (%) 100 | 100 100 100 . 100 Level 1 . | . . . . . Level 2 . | . . . . . Level 3 . | . . . . . Level 4 . | . . . . . Level 5 . | . . . . . High Security . | . . . . . Max Security . | . . . . . Peak Influence 101 | . 101 7 . . Initial 7 | . . 7 . . Average 25 | . 32 . . . Influence Increases 370 | . 370 . . . Destroy 0b10 Robot/C 260 | . 260 . . . Destroy 0b10 Robot/NC 25 | . 25 . . . Destroy Leader 66 | . 66 . . . Successful Hack 17 | . 17 . . . Destroy Structure 2 | . 2 . . . Influence Decreases 370 | . 350 20 . . Entered New Map 13 | . . 13 . . Time Decay 357 | . 350 7 . . Squads Dispatched 2 | . 2 . . . Investigation 2 | . 2 . . . Extermination . | . . . . . Reinforcement . | . . . . . Assault . | . . . . . Garrison . | . . . . . Intercept . | . . . . . Searches Triggered . | . . . . . Construction Impeded . | . . . . . Haulers Reinforced . | . . . . . Active Scanning Responses . | . . . . . Cargo Convoy Interrupts . | . . . . . Stealth | -11 -10 -10 -10 -9 --------- Run | Yrd Mat Min Exi Min Distress Signals . | . . . . . Communications Jammed . | . . . . . Distress Signals . | . . . . . Times Spotted 43 | . 22 18 . 3 Peak Tracking Total 10 | . 3 10 . 3 Tactical Retreats 2 | . . 2 . . Traps | -11 -10 -10 -10 -9 ------- Run | Yrd Mat Min Exi Min Traps Triggered . | . . . . . Indirectly . | . . . . . Trap Hack Attempts . | . . . . . Triggered . | . . . . . Disarmed . | . . . . . Reprogrammed . | . . . . . Reused . | . . . . . Traps Extracted . | . . . . . Installed . | . . . . . Triggered . | . . . . . Machines | -11 -10 -10 -10 -9 ---------- Run | Yrd Mat Min Exi Min Machines Disabled . | . . . . . Max in Single Turn . | . . . . . Machines Repaired . | . . . . . Machines Dismantled . | . . . . . Machines Sabotaged . | . . . . . Overloaded Fab Kills . | . . . . . Hacking | -11 -10 -10 -10 -9 --------- Run | Yrd Mat Min Exi Min Machines Accessed 7 | . 7 . . . Terminals 5 | . 5 . . . Fabricators . | . . . . . Repair Stations 1 | . 1 . . . Recycling Units 1 | . 1 . . . Scanalyzers . | . . . . . Garrison Access . | . . . . . Total Hacks 23 | . 23 . . . Successful 8 | . 8 . . . Failed 15 | . 15 . . . Catastrophic 3 | . 3 . . . Database Lockouts . | . . . . . Manual 13 | . 13 . . . Terminals 14 | . 14 . . . Fabricators . | . . . . . Repair Stations 6 | . 6 . . . Recycling Units 3 | . 3 . . . Scanalyzers . | . . . . . Garrison Access . | . . . . . Terminal Hacks 4 | . 4 . . . Robot Analysis 2 | . 2 . . . Prototype ID Bank 1 | . 1 . . . Branch Access Points 1 | . 1 . . . Fabricator Hacks . | . . . . . Repair Station Hacks 4 | . 4 . . . Scan Component 2 | . 2 . . . Repair 2 | . 2 . . . Recycling Unit Hacks . | . . . . . Scanalyzer . | . . . . . Garrison Access Hacks . | . . . . . Unauthorized Hacks . | . . . . . Terminals . | . . . . . Fabricators . | . . . . . Repair Stations . | . . . . . Recycling Units . | . . . . . Scanalyzers . | . . . . . Garrison Access . | . . . . . Data Cores Recovered . | . . . . . Used . | . . . . . Hacking Detections 7 | . 7 . . . Full Trace Events 3 | . 3 . . . Feedback Events . | . . . . . Feedback Blocked . | . . . . . Robot Schematics Acquired . | . . . . . Robots Built . | . . . . . Authchips . | . . . . . Time . | . . . . . Total Robot Build Rating . | . . . . . Part Schematics Acquired . | . . . . . Parts Built . | . . . . . Authchips . | . . . . . Time . | . . . . . Total Part Build Rating . | . . . . . Part Studies Acquired . | . . . . . Parts Repaired 2 | . 2 . . . Time 52 | . 52 . . . Parts Recycled . | . . . . . Recycled Matter . | . . . . . Retrieved Matter . | . . . . . Retrieved Components . | . . . . . Parts Scanalyzed . | . . . . . Part Schematics Acquired . | . . . . . Parts Damaged . | . . . . . Bothacking | -11 -10 -10 -10 -9 ------------ Run | Yrd Mat Min Exi Min Used RIF Installer . | . . . . . Robots Hacked . | . . . . . Non-combat . | . . . . . Combat . | . . . . . Robot Hacks Applied . | . . . . . Relay Couplers Released . | . . . . . Fabnet Peak Effective % . | . . . . . Robots Rewired . | . . . . . Allies Hacked . | . . . . . Hacks Repelled . | . . . . . Allies | -11 -10 -10 -10 -9 -------- Run | Yrd Mat Min Exi Min Total Allies . | . . . . . Largest Group . | . . . . . Highest-Rated Group . | . . . . . Highest-Rated Ally . | . . . . . Total Orders . | . . . . . Ally Attacks . | . . . . . Total Damage . | . . . . . Kills . | . . . . . Allies Corrupted . | . . . . . Allies Melted . | . . . . . Intel | -11 -10 -10 -10 -9 ------- Run | Yrd Mat Min Exi Min Active Infowar (turns) 1500 | . 1247 253 . . Structural 1500 | . 1247 253 . . Robot Analysis Total 2 | . 2 . . . Derelict Logs Recovered . | . . . . . Drone Launches . | . . . . . Drone Recoveries . | . . . . . Exploration | -11 -10 -10 -10 -9 ------------- Run | Yrd Mat Min Exi Min Turns Passed 1919 | 80 1347 280 182 30 Spaces Moved 1300 | 47 695 181 362 15 Core 432 | 4 . 51 362 15 Treads 868 | 43 695 130 . . Legs . | . . . . . Wheels . | . . . . . Hover . | . . . . . Flight . | . . . . . Fastest Speed 50 | 50 160 50 50 50 Average Speed 123 | 150 160 129 50 50 Slowest Speed 240 | 160 160 240 50 50 Overloaded Moves . | . . . . . Propulsion Burnouts . | . . . . . Robots Hopped . | . . . . . Potential Cave-ins . | . . . . . Cave-ins Triggered . | . . . . . Exploration Rate (%) 42 | 4 93 23 86 5 Regions Visited 4 Branch Regions 3 Pre-discovered Areas . | . . . . . Known Exits Taken 1 | . 1 . . . Unknown Exits Taken 3 | 1 . 1 1 . Scrap Searched 1 | . . 1 . . Spaces Dug . | . . . . . Terrain Destroyed . | . . . . . Melee . | . . . . . Projectile . | . . . . . AOE . | . . . . . Terrain Rammed . | . . . . . Walls Destroyed . | . . . . . Machines Disabled . | . . . . . Actions | -11 -10 -10 -10 -9 --------- Run | Yrd Mat Min Exi Min Total 1486 | 53 828 206 362 37 Wait 86 | . 61 2 1 22 Move 1296 | 46 694 180 361 15 Hop . | . . . . . Pick Up 8 | . 7 1 . . Fast Attach 10 | 6 4 . . . Attach 3 | . . 3 . . Detach . | . . . . . Swap 5 | 1 3 1 . . Drop 10 | . 3 7 . . Fire 63 | . 51 12 . . Melee . | . . . . . Ram . | . . . . . Kick . | . . . . . Crush 5 | . 5 . . . Escape Stasis . | . . . . . Rewire . | . . . . . Trap . | . . . . . Miscellaneous . | . . . . . Route ------- -11/Scrapyard -10/Materials (discovered 6 exits: [*Mat x3] / *Min x2 / [*Sub]) -10/Mines -10/Exiles -9/Mines History --------- Turn | Location | Event 32 | -11/Scrapyard | Discovered new exit (range 15) 81 | -11/Scrapyard | Entered Materials 226 | -10/Materials | Discovered new exit (range 16) 316 | -10/Materials | Build established: Mutant 451 | -10/Materials | Repaired Lgt. Treads 487 | -10/Materials | Repaired Med. Laser 581 | -10/Materials | Derelicts attacked the area 770 | -10/Materials | Discovered new exit (range 15) 987 | -10/Materials | Identified exit to Mines 1018 | -10/Materials | Discovered new exit (range 16) 1253 | -10/Materials | Discovered new exit (range 11) 1351 | -10/Materials | Discovered new exit (range 11) 1428 | -10/Materials | Entered Mines 1474 | -10/Mines | Met a Derelict bent on vengeance 1493 | -10/Mines | Deemed a non-threat by the Exiles lab entrance 1493 | -10/Mines | Discovered new exit (range 6) 1602 | -10/Mines | Assembled infested the area 1667 | -10/Mines | Core integrity fell below 50% 1684 | -10/Mines | Core integrity fell below 20% 1708 | -10/Mines | Entered Exiles 1709 | -10/Exiles | Lost 4 parts (2n2w) 1723 | -10/Exiles | Met 8R-AWN 1730 | -10/Exiles | Met EX-HEX 1747 | -10/Exiles | Met EX-BIN 1754 | -10/Exiles | Aligned with FarCom system 1755 | -10/Exiles | Given EX-Vault access code 1796 | -10/Exiles | Met EX-DEC 1817 | -10/Exiles | Visited The Gauntlet 1884 | -10/Exiles | Discovered new exit (range 14) 1890 | -10/Exiles | Entered Mines 1920 | -9/Mines | Destroyed by G-34 Mercenary with Small Laser Last Messages --------------- 9T-18R(z): I wish the Exiles would finish that old telephasing project they were working on, it sure would save us a lot of time when running errands. I'm not complaining though, nope, not me! I get that having only half of the bot ever arrive at its destination is tough on maintenance, and they said there likely wouldn't be any breakthroughs in the near term so they're doing FarCom instead. 01884_ EXIT=FOUND LOCATION=UNKNOWN GOAL=ESCAPE 01890_ Receiving FarCom transmissions... 01891_ K-01 Serf collects debris. 01907_ K-01 Serf cleans the Core Extractor. 01907_ K-01 Serf collects debris. 01911_ K-01 Serf cleans the Core Extractor. 01915_ K-01 Serf collects debris. 01919_ K-01 Serf cleans the Core Extractor. Map ----- +----------------------------------------------------+ | | | | | | | | | | | | | | | | | | | | | | | | | | | | | | | | | | | | | | | | | | | | | ?????????????????????????????????? | | ?????????????????????????????????? | | ???????????????##??????#########?? | | ???????????????# ????# @ #?? | | ??????????????# #### """ #?? | | ??????????????# g g""" #?? | | ????????????????? """l #?? | | ???????????????? ### k #?? | | ???????????????## ???# #?? | | ????????????????###????# #?? | | ???????????????????????# #?? | | ???????????????????????# #?? | | ???????????????????????#########?? | | ?????????????????????????????????? | | ?????????????????????????????????? | | ?????????????????????????????????? | | ?????????????????????????????????? | | ?????????????????????????????????? | | ?????????????????????????????????? | | ?????????????????????????????????? | | ?????????????????????????????????? | | ?????????????????????????????????? | | ?????????????????????????????????? | | ?????????????????????????????????? | | ?????????????????????????????????? | | ?????????????????????????????????? | | ?????????????????????????????????? | | ?????????????????????????????????? | +----------------------------------------------------+ Best States ------------- Heat Dissipation 25 Energy Generation 14 Energy Capacity 265 Matter Stores 300 Matter Capacity 300 Sight Range 16 Terrain Scan Density 10 Evasion (%) 50 Recoil Reduction 2 Item Schematics ----------------- None Robot Schematics ------------------ None Fabricated ------------ Nothing Repaired ---------- Lgt. Treads | 67% | -10/Materials Med. Laser | 61% | -10/Materials Studied --------- None Alien Tech Used ----------------- None Achievements -------------- None Challenges ------------ None Game ------ Seed WarpShadeSink Manual? 0 Play Time 00:18:21 Cumulative 48.9 hours Start 2026.07.10 @ 10:51:43 End 2026.07.10 @ 11:11:28 Sessions 2 Manual Loads 0 Difficulty Rogue Special Mode None Game No. 68 Rogue 68 Adventurer 0 Explorer 0 Win Type - Total 0 Types 0/0/0/0/0/0/0/0/0/0 Lore% 9 Gallery% 22 Achievement% 19 Wizard Run 0 Options --------- Layout 1 ASCII 0 Keyboard 1 Movement Numpad Keybinds 0 Fullscreen 1 Font 32/SmallcapsGlow Map View 50x35 Zoom Use 2% Tactical HUD 1 Map Filters NONE Filters NONE Steam 1 RUN: 6f88a0b1-d781-4daf-99c7-b83e3d9a73f4